[Event "Championnat d'Europe de Blitz"]
[Date "2024.12.09"]
[White "Kadric, Denis"]
[Black "Maltsevskaya, Aleksandra"]
[WhiteElo "2544"]
[BlackElo "2368"]
[Round "7.27"]
[Result "0-1"]
[TimeControl "180+2"]

1. e4 {[%clk 00:03:03]} c5 {[%emt 00:00:02] [%clk 00:03:03]} 2. Nf3 {[%emt
00:00:04] [%clk 00:03:01]} e6 {[%clk 00:03:04]} 3. d4 {[%emt 00:00:12] [%clk
00:02:51]} cxd4 {[%emt 00:00:01] [%clk 00:03:05]} 4. Nxd4 {[%emt 00:00:01] [%clk
00:02:52]} Nf6 {[%emt 00:00:01] [%clk 00:03:06]} 5. Nc3 {[%emt 00:00:01] [%clk
00:02:53]} Nc6 {[%emt 00:00:01] [%clk 00:03:06]} 6. g3 {[%emt 00:00:15] [%clk
00:02:40]} d6 {[%emt 00:00:25] [%clk 00:02:44]} 7. Bg2 {[%emt 00:00:02] [%clk
00:02:40]} Bd7 {[%emt 00:00:03] [%clk 00:02:43]} 8. O-O {[%emt 00:00:11] [%clk
00:02:31]} a6 {[%emt 00:00:06] [%clk 00:02:40]} 9. Nb3 {[%emt 00:00:13] [%clk
00:02:20]} Be7 {[%emt 00:00:03] [%clk 00:02:39]} 10. a4 {[%emt 00:00:13] [%clk
00:02:09]} O-O {[%emt 00:00:02] [%clk 00:02:38]} 11. a5 {[%emt 00:00:02] [%clk
00:02:10]} Ne5 {[%emt 00:00:08] [%clk 00:02:31]} 12. f4 {[%emt 00:00:12] [%clk
00:02:01]} Nc4 {[%emt 00:00:03] [%clk 00:02:31]} 13. Qe2 {[%clk 00:02:02]} Rc8
{[%emt 00:00:22] [%clk 00:02:11]} 14. g4 {[%emt 00:00:08] [%clk 00:01:56]} d5
{[%emt 00:00:16] [%clk 00:01:57]} 15. e5 {[%emt 00:00:06] [%clk 00:01:53]} Ne8
{[%emt 00:00:17] [%clk 00:01:42]} 16. Kh1 {[%emt 00:00:07] [%clk 00:01:48]} b5
{[%emt 00:00:05] [%clk 00:01:40]} 17. f5 {[%emt 00:00:12] [%clk 00:01:38]} b4
{[%emt 00:00:39] [%clk 00:01:03]} 18. Nd1 {[%emt 00:00:01] [%clk 00:01:39]} Qc7
{[%emt 00:00:23] [%clk 00:00:42]} 19. Bf4 {[%emt 00:00:04] [%clk 00:01:36]} exf5
{[%emt 00:00:06] [%clk 00:00:39]} 20. e6 {[%emt 00:00:03] [%clk 00:01:35]} Qb7
{[%emt 00:00:14] [%clk 00:00:27]} 21. exd7 {[%emt 00:00:04] [%clk 00:01:33]}
Qxd7 {[%emt 00:00:02] [%clk 00:00:27]} 22. gxf5 {[%emt 00:00:05] [%clk
00:01:30]} Nf6 {[%emt 00:00:03] [%clk 00:00:26]} 23. Ne3 {[%emt 00:00:25] [%clk
00:01:07]} Nxe3 {[%emt 00:00:07] [%clk 00:00:21]} 24. Bxe3 {[%emt 00:00:06]
[%clk 00:01:04]} Rfe8 {[%emt 00:00:06] [%clk 00:00:16]} 25. Qd3 {[%emt 00:00:06]
[%clk 00:01:00]} Ng4 {[%emt 00:00:09] [%clk 00:00:09]} 26. Bg1 {[%emt 00:00:03]
[%clk 00:00:59]} Bd6 {[%emt 00:00:05] [%clk 00:00:06]} 27. h3 {[%emt 00:00:11]
[%clk 00:00:50]} Nf6 {[%emt 00:00:01] [%clk 00:00:07]} 28. Rad1 {[%emt 00:00:08]
[%clk 00:00:44]} Bb8 {[%emt 00:00:03] [%clk 00:00:06]} 29. Qd2 {[%emt 00:00:23]
[%clk 00:00:23]} Nh5 {[%emt 00:00:03] [%clk 00:00:05]} 30. Rf3 {[%emt 00:00:06]
[%clk 00:00:19]} Ng3+ {[%emt 00:00:02] [%clk 00:00:05]} 31. Rxg3 {[%clk
00:00:20]} Bxg3 {[%clk 00:00:05]} 32. Qxd5 {[%emt 00:00:05] [%clk 00:00:18]} Qe7
{[%emt 00:00:03] [%clk 00:00:05]} 33. Nd4 {[%emt 00:00:04] [%clk 00:00:15]} Qf6
{[%emt 00:00:01] [%clk 00:00:06]} 34. Qf3 {[%emt 00:00:04] [%clk 00:00:14]} Be5
{[%emt 00:00:01] [%clk 00:00:06]} 35. Nc6 {[%emt 00:00:07] [%clk 00:00:09]} Bxb2
{[%emt 00:00:01] [%clk 00:00:07]} 36. Nxb4 {[%emt 00:00:01] [%clk 00:00:10]} Bc3
{[%emt 00:00:03] [%clk 00:00:06]} 37. Nd5 {[%clk 00:00:11]} Qe5 {[%emt 00:00:04]
[%clk 00:00:04]} 38. Bh2 {[%emt 00:00:02] [%clk 00:00:11]} Qe2 {[%emt 00:00:01]
[%clk 00:00:04]} 39. Nxc3 {[%emt 00:00:02] [%clk 00:00:11]} Qxf3 {[%emt
00:00:01] [%clk 00:00:04]} 40. Bxf3 {[%clk 00:00:13]} Rxc3 {[%emt 00:00:01]
[%clk 00:00:05]} 41. Bb7 {[%emt 00:00:10] [%clk 00:00:05]} Rxc2 {[%emt 00:00:01]
[%clk 00:00:06]} 42. Bxa6 {[%clk 00:00:06]} Rc5 {[%emt 00:00:02] [%clk
00:00:07]} 43. Ra1 {[%emt 00:00:03] [%clk 00:00:05]} Ra8 {[%emt 00:00:01] [%clk
00:00:07]} 44. Bb7 {[%emt 00:00:02] [%clk 00:00:06]} Rcxa5 {[%emt 00:00:02]
[%clk 00:00:07]} 45. Rc1 {[%emt 00:00:02] [%clk 00:00:06]} Re8 {[%emt 00:00:02]
[%clk 00:00:07]} 46. Bc6 {[%clk 00:00:07]} Rc8 {[%emt 00:00:01] [%clk 00:00:08]}
47. Bf4 {[%emt 00:00:04] [%clk 00:00:05]} Rxf5 {[%clk 00:00:09]} 48. Be3 {[%emt
00:00:04] [%clk 00:00:04]} Rf6 {[%emt 00:00:03] [%clk 00:00:08]} 49. Bg2 {[%emt
00:00:02] [%clk 00:00:05]} Rxc1+ {[%emt 00:00:01] [%clk 00:00:08]} 50. Bxc1
{[%emt 00:00:01] [%clk 00:00:06]} Ra6 {[%clk 00:00:09]} 51. Kh2 {[%emt 00:00:01]
[%clk 00:00:07]} Ra2 {[%emt 00:00:01] [%clk 00:00:10]} 52. Be3 {[%clk 00:00:08]}
g6 {[%emt 00:00:03] [%clk 00:00:09]} 53. Kg3 {[%clk 00:00:09]} Kg7 {[%emt
00:00:01] [%clk 00:00:10]} 54. Bd4+ {[%clk 00:00:10]} f6 {[%emt 00:00:01] [%clk
00:00:11]} 55. Bf3 {[%clk 00:00:11]} Ra4 {[%emt 00:00:02] [%clk 00:00:12]} 56.
Be3 {[%clk 00:00:12]} g5 {[%emt 00:00:03] [%clk 00:00:11]} 57. Bd1 {[%emt
00:00:03] [%clk 00:00:12]} Ra3 {[%emt 00:00:02] [%clk 00:00:11]} 58. Kf2 {[%emt
00:00:01] [%clk 00:00:13]} f5 {[%emt 00:00:02] [%clk 00:00:11]} 59. Bc5 {[%emt
00:00:02] [%clk 00:00:12]} Ra2+ {[%emt 00:00:02] [%clk 00:00:12]} 60. Ke3 {[%emt
00:00:02] [%clk 00:00:12]} Rh2 {[%emt 00:00:04] [%clk 00:00:11]} 61. Kd3 {[%emt
00:00:09] [%clk 00:00:06]} Rxh3+ {[%emt 00:00:01] [%clk 00:00:11]} 62. Kd4
{[%clk 00:00:07]} h5 {[%emt 00:00:03] [%clk 00:00:10]} 63. Ke5 {[%emt 00:00:01]
[%clk 00:00:08]} Kg6 {[%emt 00:00:01] [%clk 00:00:11]} 64. Bc2 {[%emt 00:00:01]
[%clk 00:00:09]} Rf3 {[%clk 00:00:12]} 65. Bd1 {[%emt 00:00:01] [%clk 00:00:11]}
Rf1 {[%emt 00:00:01] [%clk 00:00:12]} 66. Bc2 {[%emt 00:00:01] [%clk 00:00:12]}
Re1+ {[%clk 00:00:13]} 67. Kd4 {[%emt 00:00:02] [%clk 00:00:12]} h4 {[%emt
00:00:02] [%clk 00:00:13]} 68. Bb4 {[%clk 00:00:14]} Rc1 {[%emt 00:00:01] [%clk
00:00:13]} 69. Ba4 {[%emt 00:00:01] [%clk 00:00:15]} h3 {[%emt 00:00:02]} 70.
Be8+ {[%clk 00:00:16]} Kf6 {[%emt 00:00:01] [%clk 00:00:14]} 71. Bd6 {[%emt
00:00:03] [%clk 00:00:15]} f4 {[%emt 00:00:02] [%clk 00:00:14]} 72. Be5+ {[%emt
00:00:02] [%clk 00:00:16]} Ke6 {[%clk 00:00:15]} 0-1

[Site "Europe Echecs"]

[Event "Championnat d'Europe de Blitz"]
[Date "2024.12.09"]
[White "Van Foreest, Lucas"]
[Black "Magold, Filip"]
[WhiteElo "2520"]
[BlackElo "2428"]
[Round "7.28"]
[Result "0-1"]
[TimeControl "180+2"]

1. d4 {[%clk 00:03:03]} d5 {[%emt 00:00:01] [%clk 00:03:03]} 2. c4 {[%clk
00:03:04]} c6 {[%emt 00:00:01] [%clk 00:03:04]} 3. Nf3 {[%emt 00:00:02] [%clk
00:03:04]} Nf6 {[%clk 00:03:05]} 4. Nc3 {[%emt 00:00:01] [%clk 00:03:06]} dxc4
{[%emt 00:00:01] [%clk 00:03:06]} 5. a4 {[%clk 00:03:07]} Bf5 {[%clk 00:03:07]}
6. Ne5 {[%emt 00:00:02] [%clk 00:03:08]} Nbd7 {[%emt 00:00:05] [%clk 00:03:03]}
7. Nxc4 {[%emt 00:00:01] [%clk 00:03:08]} Qc7 {[%clk 00:03:04]} 8. e3 {[%emt
00:00:07] [%clk 00:03:04]} e5 {[%emt 00:00:04] [%clk 00:03:02]} 9. dxe5 {[%emt
00:00:03] [%clk 00:03:03]} Nxe5 {[%emt 00:00:01] [%clk 00:03:03]} 10. Nxe5
{[%emt 00:00:01] [%clk 00:03:04]} Qxe5 {[%emt 00:00:02] [%clk 00:03:03]} 11. Qb3
{[%clk 00:03:05]} Qc7 {[%emt 00:00:19] [%clk 00:02:46]} 12. Bc4 {[%emt 00:00:01]
[%clk 00:03:05]} Bd6 {[%emt 00:00:03] [%clk 00:02:45]} 13. h3 {[%emt 00:00:01]
[%clk 00:03:06]} O-O {[%emt 00:00:04] [%clk 00:02:43]} 14. O-O {[%emt 00:00:01]
[%clk 00:03:06]} Rad8 {[%emt 00:00:13] [%clk 00:02:33]} 15. Rd1 {[%emt 00:00:02]
[%clk 00:03:06]} Nd7 {[%emt 00:00:15] [%clk 00:02:20]} 16. e4 {[%emt 00:00:04]
[%clk 00:03:04]} Nc5 {[%emt 00:00:02] [%clk 00:02:21]} 17. Qc2 {[%emt 00:00:21]
[%clk 00:02:45]} Nxe4 {[%emt 00:00:05] [%clk 00:02:18]} 18. Be3 {[%emt 00:00:02]
[%clk 00:02:45]} Bh2+ {[%emt 00:00:04] [%clk 00:02:17]} 19. Kh1 {[%emt 00:00:12]
[%clk 00:02:35]} Ng3+ {[%emt 00:00:02] [%clk 00:02:17]} 20. fxg3 {[%emt
00:00:02] [%clk 00:02:35]} Bxc2 {[%emt 00:00:01] [%clk 00:02:18]} 21. Rxd8
{[%emt 00:00:01] [%clk 00:02:36]} Rxd8 {[%emt 00:00:05] [%clk 00:02:15]} 22.
Kxh2 {[%emt 00:00:01] [%clk 00:02:37]} Qe7 {[%emt 00:00:32] [%clk 00:01:45]} 23.
Bxa7 {[%emt 00:00:03] [%clk 00:02:36]} Qb4 {[%emt 00:00:02] [%clk 00:01:45]} 24.
Rc1 {[%emt 00:00:18] [%clk 00:02:20]} Qxb2 {[%emt 00:00:31] [%clk 00:01:16]} 25.
Ne2 {[%emt 00:00:02] [%clk 00:02:19]} Bd3 {[%emt 00:00:07] [%clk 00:01:11]} 26.
Bxd3 {[%emt 00:00:23] [%clk 00:01:58]} Rxd3 {[%emt 00:00:02] [%clk 00:01:11]}
27. Re1 {[%clk 00:01:59]} Qd2 {[%emt 00:00:23] [%clk 00:00:51]} 28. Bf2 {[%emt
00:00:02] [%clk 00:01:59]} Qxe1 {[%emt 00:00:04] [%clk 00:00:49]} 29. Bxe1
{[%emt 00:00:01] [%clk 00:02:00]} Re3 {[%emt 00:00:01] [%clk 00:00:50]} 0-1

[Site "Europe Echecs"]

[Event "Championnat d'Europe de Blitz"]
[Date "2024.12.09"]
[White "Brunner, Nicolas"]
[Black "Fridman, Daniel"]
[WhiteElo "2413"]
[BlackElo "2571"]
[Round "7.29"]
[Result "0-1"]
[TimeControl "180+2"]

1. d4 {[%emt 00:00:02] [%clk 00:03:02]} e6 {[%emt 00:00:03] [%clk 00:03:02]} 2.
c4 {[%emt 00:00:02] [%clk 00:03:03]} b6 {[%clk 00:03:03]} 3. e4 {[%emt 00:00:03]
[%clk 00:03:02]} Bb4+ {[%emt 00:00:02] [%clk 00:03:02]} 4. Bd2 {[%emt 00:00:02]
[%clk 00:03:02]} Bxd2+ {[%emt 00:00:01] [%clk 00:03:03]} 5. Qxd2 {[%emt
00:00:02] [%clk 00:03:02]} d5 {[%clk 00:03:04]} 6. Nc3 {[%emt 00:00:19] [%clk
00:02:45]} Nf6 {[%emt 00:00:03] [%clk 00:03:03]} 7. e5 {[%emt 00:00:04] [%clk
00:02:43]} Ne4 {[%emt 00:00:01] [%clk 00:03:03]} 8. Nxe4 {[%emt 00:00:02] [%clk
00:02:44]} dxe4 {[%emt 00:00:02] [%clk 00:03:04]} 9. Ne2 {[%emt 00:00:02] [%clk
00:02:43]} Bb7 {[%emt 00:00:03] [%clk 00:03:03]} 10. Nc3 {[%emt 00:00:03] [%clk
00:02:42]} O-O {[%emt 00:00:12] [%clk 00:02:53]} 11. O-O-O {[%emt 00:00:03]
[%clk 00:02:41]} f6 {[%emt 00:00:06] [%clk 00:02:49]} 12. Qe3 {[%emt 00:00:22]
[%clk 00:02:21]} f5 {[%emt 00:00:12] [%clk 00:02:39]} 13. g3 {[%emt 00:00:02]
[%clk 00:02:21]} Qe7 {[%emt 00:00:09] [%clk 00:02:32]} 14. Bg2 {[%emt 00:00:05]
[%clk 00:02:18]} c5 {[%emt 00:00:03] [%clk 00:02:31]} 15. dxc5 {[%emt 00:01:03]
[%clk 00:01:18]} Qxc5 {[%emt 00:00:23] [%clk 00:02:10]} 16. Qxc5 {[%emt
00:00:05] [%clk 00:01:15]} bxc5 {[%emt 00:00:02] [%clk 00:02:10]} 17. Rd6 {[%emt
00:00:07] [%clk 00:01:10]} Nc6 {[%emt 00:00:09] [%clk 00:02:04]} 18. Rxe6 {[%emt
00:00:04] [%clk 00:01:08]} Kf7 {[%emt 00:00:01] [%clk 00:02:04]} 19. Rd6 {[%emt
00:00:02] [%clk 00:01:07]} Nxe5 {[%emt 00:00:02] [%clk 00:02:05]} 20. b3 {[%emt
00:00:13] [%clk 00:00:56]} Rad8 {[%emt 00:00:02] [%clk 00:02:04]} 21. Rxd8
{[%emt 00:00:19] [%clk 00:00:40]} Rxd8 {[%emt 00:00:01] [%clk 00:02:05]} 22. Rf1
{[%emt 00:00:11] [%clk 00:00:30]} Nd3+ {[%emt 00:00:14] [%clk 00:01:53]} 23. Kc2
{[%emt 00:00:04] [%clk 00:00:29]} Nb4+ {[%emt 00:00:01] [%clk 00:01:54]} 24. Kc1
{[%emt 00:00:10] [%clk 00:00:21]} Rd3 {[%emt 00:00:01] [%clk 00:01:54]} 25. Na4
{[%emt 00:00:02] [%clk 00:00:22]} Nxa2+ {[%emt 00:00:02] [%clk 00:01:55]} 26.
Kb2 {[%clk 00:00:21]} Rd2+ {[%emt 00:00:07] [%clk 00:01:51]} 27. Ka3 {[%emt
00:00:01] [%clk 00:00:22]} a5 {[%emt 00:00:18] [%clk 00:01:35]} 28. Nxc5 {[%emt
00:00:01] [%clk 00:00:23]} Bc6 {[%emt 00:00:04] [%clk 00:01:34]} 29. f3 {[%emt
00:00:19] [%clk 00:00:05]} Nb4 {[%emt 00:00:03] [%clk 00:01:32]} 0-1

[Site "Europe Echecs"]

[Event "Championnat d'Europe de Blitz"]
[Date "2024.12.09"]
[White "Livaic, Leon"]
[Black "Meyer, Falko"]
[WhiteElo "2560"]
[BlackElo "2215"]
[Round "7.30"]
[Result "1-0"]
[TimeControl "180+2"]

1. d4 {[%emt 00:00:01] [%clk 00:03:02]} c6 {[%clk 00:03:03]} 2. c4 {[%emt
00:00:03] [%clk 00:03:02]} d5 {[%clk 00:03:04]} 3. cxd5 {[%emt 00:00:02] [%clk
00:03:02]} cxd5 {[%clk 00:03:05]} 4. Bf4 {[%emt 00:00:03] [%clk 00:03:01]} Nc6
{[%emt 00:00:02] [%clk 00:03:06]} 5. e3 {[%emt 00:00:01] [%clk 00:03:01]} e6
{[%emt 00:00:04] [%clk 00:03:04]} 6. Nc3 {[%emt 00:00:01] [%clk 00:03:02]} Bd6
{[%emt 00:00:04] [%clk 00:03:02]} 7. Bxd6 {[%emt 00:00:02] [%clk 00:03:03]} Qxd6
{[%emt 00:00:01] [%clk 00:03:02]} 8. Bd3 {[%emt 00:00:01] [%clk 00:03:03]} a6
{[%emt 00:00:02] [%clk 00:03:03]} 9. Rc1 {[%emt 00:00:02] [%clk 00:03:03]} Nf6
{[%emt 00:00:05] [%clk 00:03:00]} 10. f4 {[%emt 00:00:02] [%clk 00:03:03]} b5
{[%emt 00:00:07] [%clk 00:02:55]} 11. Nf3 {[%emt 00:00:03] [%clk 00:03:02]} Bb7
{[%emt 00:00:02] [%clk 00:02:55]} 12. O-O {[%emt 00:00:03] [%clk 00:03:00]} Rc8
{[%emt 00:00:17] [%clk 00:02:40]} 13. Ne5 {[%emt 00:00:03] [%clk 00:03:00]} Na5
{[%emt 00:00:15] [%clk 00:02:28]} 14. Qf3 {[%emt 00:00:36] [%clk 00:02:26]} g6
{[%emt 00:00:09] [%clk 00:02:21]} 15. Rc2 {[%emt 00:00:13] [%clk 00:02:15]} Ke7
{[%emt 00:00:21] [%clk 00:02:02]} 16. Rfc1 {[%emt 00:00:10] [%clk 00:02:08]} b4
{[%emt 00:00:29] [%clk 00:01:35]} 17. Na4 {[%emt 00:00:04] [%clk 00:02:05]} b3
{[%emt 00:00:09] [%clk 00:01:28]} 18. Rxc8 {[%emt 00:00:24] [%clk 00:01:43]}
Rxc8 {[%clk 00:01:29]} 19. Rxc8 {[%emt 00:00:02] [%clk 00:01:44]} Bxc8 {[%emt
00:00:02] [%clk 00:01:28]} 20. a3 {[%emt 00:00:09] [%clk 00:01:37]} Nd7 {[%emt
00:00:24] [%clk 00:01:06]} 21. Qd1 {[%emt 00:00:03] [%clk 00:01:36]} Nxe5 {[%emt
00:00:07] [%clk 00:01:02]} 22. fxe5 {[%emt 00:00:02] [%clk 00:01:36]} Qc7 {[%emt
00:00:03] [%clk 00:01:01]} 23. Nc5 {[%emt 00:00:03] [%clk 00:01:34]} Qb6 {[%emt
00:00:03] [%clk 00:01:00]} 24. Qe1 {[%emt 00:00:18] [%clk 00:01:18]} Kf8 {[%emt
00:00:08] [%clk 00:00:55]} 25. Qc3 {[%emt 00:00:12] [%clk 00:01:08]} Kg7 {[%emt
00:00:06] [%clk 00:00:51]} 26. Qb4 {[%emt 00:00:35] [%clk 00:00:35]} Qc7 {[%emt
00:00:03] [%clk 00:00:49]} 27. h3 {[%emt 00:00:06] [%clk 00:00:31]} h5 {[%emt
00:00:02] [%clk 00:00:49]} 28. Qc3 {[%emt 00:00:05] [%clk 00:00:28]} Qb6 {[%emt
00:00:02] [%clk 00:00:48]} 29. Kh2 {[%emt 00:00:02] [%clk 00:00:28]} Bb7 {[%emt
00:00:07] [%clk 00:00:43]} 30. Qe1 {[%emt 00:00:13] [%clk 00:00:17]} Nc4 {[%emt
00:00:03] [%clk 00:00:42]} 31. Bxc4 {[%emt 00:00:04] [%clk 00:00:15]} dxc4
{[%emt 00:00:01] [%clk 00:00:44]} 32. e4 {[%emt 00:00:01] [%clk 00:00:15]} Bc6
{[%emt 00:00:04] [%clk 00:00:41]} 33. Qc3 {[%emt 00:00:01] [%clk 00:00:16]} Bb5
{[%emt 00:00:01] [%clk 00:00:42]} 34. a4 {[%emt 00:00:02] [%clk 00:00:17]} Be8
{[%emt 00:00:13] [%clk 00:00:31]} 35. Qxc4 {[%emt 00:00:01] [%clk 00:00:17]} Qd8
{[%clk 00:00:33]} 36. Nxb3 {[%emt 00:00:07] [%clk 00:00:13]} Qg5 {[%emt
00:00:03] [%clk 00:00:32]} 37. Qc1 {[%emt 00:00:03] [%clk 00:00:11]} Qh4 {[%emt
00:00:03] [%clk 00:00:31]} 38. Nc5 {[%emt 00:00:06] [%clk 00:00:07]} Bc6 {[%emt
00:00:05] [%clk 00:00:28]} 39. Qe3 {[%emt 00:00:03] [%clk 00:00:06]} a5 {[%clk
00:00:30]} 40. Qg3 {[%emt 00:00:03] [%clk 00:00:05]} Qd8 {[%emt 00:00:04] [%clk
00:00:28]} 41. Qf4 {[%emt 00:00:01] [%clk 00:00:05]} Kg8 {[%emt 00:00:02] [%clk
00:00:28]} 42. Qf2 {[%emt 00:00:02] [%clk 00:00:05]} h4 {[%emt 00:00:03] [%clk
00:00:27]} 43. Qe3 {[%emt 00:00:01] [%clk 00:00:06]} Kh7 {[%emt 00:00:03] [%clk
00:00:26]} 44. b3 {[%emt 00:00:02] [%clk 00:00:06]} Qe7 {[%emt 00:00:02] [%clk
00:00:26]} 45. Kg1 {[%emt 00:00:01] [%clk 00:00:07]} g5 {[%emt 00:00:04] [%clk
00:00:25]} 46. Qf3 {[%emt 00:00:02] [%clk 00:00:07]} Qd8 {[%emt 00:00:02] [%clk
00:00:25]} 47. Qe3 {[%clk 00:00:08]} Qe7 {[%emt 00:00:01] [%clk 00:00:26]} 48.
Kf2 {[%clk 00:00:09]} f6 {[%emt 00:00:01] [%clk 00:00:27]} 49. exf6 {[%emt
00:00:06] [%clk 00:00:05]} Qxf6+ {[%clk 00:00:28]} 50. Kg1 {[%clk 00:00:06]} Kh6
{[%emt 00:00:04] [%clk 00:00:26]} 51. Nd3 {[%emt 00:00:02] [%clk 00:00:07]} Ba8
{[%emt 00:00:10] [%clk 00:00:19]} 52. Ne5 {[%emt 00:00:01] [%clk 00:00:07]} Kg7
{[%emt 00:00:02] [%clk 00:00:19]} 53. Qf3 {[%emt 00:00:04] [%clk 00:00:06]} Qe7
{[%emt 00:00:06] [%clk 00:00:14]} 54. Qh5 {[%emt 00:00:03] [%clk 00:00:05]} Qf6
{[%emt 00:00:03] [%clk 00:00:13]} 55. Qf3 {[%emt 00:00:02] [%clk 00:00:05]} Qe7
{[%clk 00:00:15]} 56. Kh2 {[%emt 00:00:01] [%clk 00:00:05]} Bb7 {[%emt 00:00:02]
[%clk 00:00:15]} 57. Qe3 {[%emt 00:00:02] [%clk 00:00:05]} Qf6 {[%emt 00:00:01]
[%clk 00:00:16]} 58. Nf3 {[%emt 00:00:01] [%clk 00:00:06]} Qf4+ {[%emt 00:00:10]
[%clk 00:00:08]} 59. Qxf4 {[%clk 00:00:07]} gxf4 {[%emt 00:00:01] [%clk
00:00:09]} 60. Nd2 {[%emt 00:00:03] [%clk 00:00:06]} Ba6 {[%emt 00:00:03] [%clk
00:00:09]} 61. Kg1 {[%emt 00:00:02] [%clk 00:00:06]} Kf6 {[%emt 00:00:04] [%clk
00:00:06]} 62. Kf2 {[%clk 00:00:08]} e5 {[%clk 00:00:08]} 63. d5 {[%emt
00:00:03] [%clk 00:00:07]} Bd3 {[%emt 00:00:01] [%clk 00:00:08]} 64. Kf3 {[%emt
00:00:03] [%clk 00:00:06]} Kg5 {[%emt 00:00:01] [%clk 00:00:09]} 65. d6 {[%emt
00:00:01] [%clk 00:00:07]} Kf6 {[%emt 00:00:04] [%clk 00:00:07]} 66. Nc4 {[%emt
00:00:01] [%clk 00:00:08]} Bc2 {[%emt 00:00:03] [%clk 00:00:06]} 67. Nxa5 {[%emt
00:00:05] [%clk 00:00:05]} Bd1+ {[%emt 00:00:02] [%clk 00:00:06]} 68. Kf2 {[%emt
00:00:01] [%clk 00:00:06]} Ke6 {[%clk 00:00:07]} 69. Nc4 {[%emt 00:00:04] [%clk
00:00:04]} Bxb3 {[%emt 00:00:01] [%clk 00:00:08]} 70. Nxe5 {[%emt 00:00:02]
[%clk 00:00:04]} Bxa4 {[%emt 00:00:02] [%clk 00:00:08]} 71. Ng6 {[%emt 00:00:03]
[%clk 00:00:04]} Kxd6 {[%clk 00:00:09]} 72. Nxf4 {[%emt 00:00:01] [%clk
00:00:04]} Ke5 {[%clk 00:00:10]} 73. Ke3 {[%clk 00:00:06]} Bc6 {[%clk 00:00:12]}
74. Ng6+ {[%clk 00:00:07]} Kf6 {[%emt 00:00:01] [%clk 00:00:12]} 75. Nxh4 {[%clk
00:00:08]} Kg5 {[%emt 00:00:01] [%clk 00:00:14]} 76. Nf3+ {[%clk 00:00:09]} Kh5
{[%clk 00:00:15]} 77. Kf4 {[%emt 00:00:02] [%clk 00:00:10]} Bb5 {[%clk
00:00:15]} 78. g4+ {[%emt 00:00:02] [%clk 00:00:10]} Kg6 {[%clk 00:00:16]} 79.
h4 {[%clk 00:00:12]} Be2 {[%emt 00:00:01] [%clk 00:00:17]} 80. h5+ {[%emt
00:00:02] [%clk 00:00:12]} Kh6 {[%clk 00:00:18]} 81. Nd4 {[%emt 00:00:01] [%clk
00:00:14]} 1-0

[Site "Europe Echecs"]

[Event "Championnat d'Europe de Blitz"]
[Date "2024.12.09"]
[White "Saric, Ante"]
[Black "Andonovski, Ljubisa"]
[WhiteElo "2482"]
[BlackElo "2253"]
[Round "7.31"]
[Result "1-0"]
[TimeControl "180+2"]

1. Nf3 {[%emt 00:00:01] [%clk 00:03:02]} Nf6 {[%emt 00:00:11] [%clk 00:02:53]}
2. c4 {[%emt 00:00:03] [%clk 00:03:02]} g6 {[%emt 00:00:25] [%clk 00:02:29]} 3.
Nc3 {[%emt 00:00:02] [%clk 00:03:02]} Bg7 {[%clk 00:02:30]} 4. e4 {[%emt
00:00:01] [%clk 00:03:03]} d6 {[%clk 00:02:31]} 5. d4 {[%emt 00:00:01] [%clk
00:03:05]} O-O {[%emt 00:00:02] [%clk 00:02:30]} 6. Be2 {[%emt 00:00:01] [%clk
00:03:06]} e5 {[%emt 00:00:06] [%clk 00:02:26]} 7. O-O {[%emt 00:00:02] [%clk
00:03:06]} Nbd7 {[%emt 00:00:06] [%clk 00:02:22]} 8. Re1 {[%emt 00:00:03] [%clk
00:03:05]} c6 {[%emt 00:00:09] [%clk 00:02:15]} 9. Bf1 {[%emt 00:00:02] [%clk
00:03:06]} Re8 {[%emt 00:00:07] [%clk 00:02:10]} 10. Be3 {[%emt 00:00:20] [%clk
00:02:49]} Ng4 {[%emt 00:00:27] [%clk 00:01:45]} 11. Bg5 {[%emt 00:00:01] [%clk
00:02:50]} f6 {[%emt 00:00:03] [%clk 00:01:43]} 12. Bh4 {[%emt 00:00:16] [%clk
00:02:37]} Nh6 {[%emt 00:00:38] [%clk 00:01:06]} 13. Qc2 {[%emt 00:00:15] [%clk
00:02:23]} Nf7 {[%emt 00:00:07] [%clk 00:01:02]} 14. Rad1 {[%emt 00:00:03] [%clk
00:02:22]} Qe7 {[%emt 00:00:03] [%clk 00:01:01]} 15. a3 {[%emt 00:00:23] [%clk
00:02:01]} h5 {[%emt 00:00:14] [%clk 00:00:49]} 16. Bg3 {[%emt 00:00:18] [%clk
00:01:46]} Bh6 {[%emt 00:00:18] [%clk 00:00:32]} 17. b4 {[%emt 00:00:10] [%clk
00:01:39]} g5 {[%emt 00:00:31] [%clk 00:00:00]} 1-0

[Site "Europe Echecs"]